bitfinex-derivatives/quotes_ETHF0:USTF0_20260117
["timestamp","ask_amount","ask_price","bid_price","bid_amount"]
[1768654431103,1.27540823,3304.9,3303.5,0.9778862]
[1768654431304,0.94776894,3304.8,3303.5,0.9778862]
[1768654431503,1.27540823,3304.9,3303.5,0.9778862]
[1768654431711,0.94777076,3304.8,3303.5,0.9778862]
[1768654431910,1.27540823,3304.9,3303.5,0.9778862]
[1768654432210,0.94777262,3304.8,3303.5,0.9778862]
[1768654432410,1.27540823,3304.9,3303.5,0.9778862]
[1768654432611,0.94777304,3304.8,3303.5,0.9778862]
[1768654432806,1.27540823,3304.9,3303.5,0.9778862]
[1768654433014,0.94777298,3304.8,3303.5,0.9778862]
[1768654433215,1.27540823,3304.9,3303.5,0.9778862]
[1768654433420,0.94777159,3304.8,3303.5,0.9778862]
[1768654433617,1.27540823,3304.9,3303.5,0.9778862]
[1768654433818,0.94777159,3304.8,3303.5,0.9778862]
[1768654434121,1.27540823,3304.9,3303.5,0.9778862]
[1768654434321,0.94777207,3304.8,3303.5,0.9778862]
[1768654434619,1.27540823,3304.9,3303.5,0.9778862]
[1768654434819,0.94777207,3304.8,3303.5,0.9778862]
[1768654435025,1.27540823,3304.9,3303.5,0.9778862]
[1768654435222,0.94777009,3304.8,3303.5,0.9778862]
[1768654435519,1.27540823,3304.9,3303.5,0.9778862]
[1768654435722,0.94777059,3304.8,3303.5,0.9778862]
[1768654435921,1.27540823,3304.9,3303.5,0.9778862]
[1768654436118,0.94777064,3304.8,3303.5,0.9778862]
[1768654436324,1.27540823,3304.9,3303.5,0.9778862]
[1768654436513,0.94777119,3304.8,3303.5,0.9778862]
[1768654436814,1.27540823,3304.9,3303.5,0.9778862]
[1768654437107,0.94777106,3304.8,3303.5,0.9778862]
[1768654437314,1.27540823,3304.9,3303.5,0.9778862]
[1768654437513,0.94777161,3304.8,3303.5,0.9778862]
[1768654437714,1.27540823,3304.9,3303.5,0.9778862]
[1768654437914,0.94777161,3304.8,3303.5,0.9778862]
[1768654438115,1.27540823,3304.9,3303.5,0.9778862]
[1768654438316,0.94777217,3304.8,3303.5,0.9778862]
[1768654438615,1.27540823,3304.9,3303.5,0.9778862]
[1768654438815,0.94777217,3304.8,3303.5,0.9778862]
[1768654439110,1.27540823,3304.9,3303.5,0.9778862]
[1768654439310,0.94777276,3304.8,3303.5,0.9778862]
[1768654439516,1.27540823,3304.9,3303.5,0.9778862]
[1768654439716,0.9515137,3304.8,3303.5,0.9778862]
[1768654439921,1.27540823,3304.9,3303.5,0.9778862]
[1768654440125,0.9515137,3304.8,3303.5,0.9778862]
[1768654440324,1.27540823,3304.9,3303.5,0.9778862]
[1768654440622,0.95151402,3304.8,3303.5,0.9778862]
[1768654440832,1.27540823,3304.9,3303.5,0.9778862]
[1768654441025,0.95151402,3304.8,3303.5,0.9778862]
[1768654441221,1.27540823,3304.9,3303.5,0.9778862]
[1768654441425,0.95151523,3304.8,3303.5,0.9778862]
[1768654441630,1.27540823,3304.9,3303.5,0.9778862]
[1768654441925,0.95151523,3304.8,3303.5,0.9778862]
[1768654442126,1.27540823,3304.9,3303.5,0.9778862]
[1768654442321,0.95151659,3304.8,3303.5,0.9778862]
[1768654442620,1.27540823,3304.9,3303.5,0.9778862]
[1768654442820,0.95151662,3304.8,3303.5,0.9778862]
[1768654443122,1.27540823,3304.9,3303.5,0.9778862]
[1768654443315,0.95151826,3304.8,3303.5,0.9778862]
[1768654443516,1.27540823,3304.9,3303.5,0.9778862]
[1768654443715,0.95151826,3304.8,3303.5,0.9778862]
[1768654443916,1.27540823,3304.9,3303.5,0.9778862]
[1768654444125,0.9515185,3304.8,3303.5,0.9778862]
[1768654444325,1.27540823,3304.9,3303.5,0.9778862]
[1768654444526,0.95130699,3304.8,3303.5,0.9778862]
[1768654444731,1.27540823,3304.9,3303.5,0.9778862]
[1768654444915,0.95130607,3304.8,3303.5,0.9778862]
[1768654445214,1.27540823,3304.9,3303.5,0.9778862]
[1768654445408,0.95130575,3304.8,3303.5,0.9778862]
[1768654445628,1.27540823,3304.9,3303.5,0.9778862]
[1768654445814,0.95130573,3304.8,3303.5,0.9778862]
[1768654446014,1.27540823,3304.9,3303.4,3.688]
[1768654446214,0.95130666,3304.8,3303.6,0.9778862]
[1768654446411,1.27540823,3304.9,3303.6,0.9778862]
[1768654446721,0.95130802,3304.8,3303.6,0.9778862]
[1768654446922,1.27540823,3304.9,3303.6,0.9778862]
[1768654447222,0.95130801,3304.8,3303.6,0.9778862]
[1768654447424,1.27540823,3304.9,3303.6,0.9778862]
[1768654447617,0.95130956,3304.8,3303.6,0.9778862]
[1768654447817,1.27540823,3304.9,3303.6,0.9778862]
[1768654448016,0.95130959,3304.8,3303.6,0.9778862]
[1768654448226,1.27540823,3304.9,3303.6,0.9778862]
[1768654448526,0.95131134,3304.8,3303.6,0.9778862]
[1768654448728,1.27540823,3304.9,3303.6,0.9778862]
[1768654449035,0.95131134,3304.8,3303.6,0.9778862]
[1768654449218,1.27540823,3304.9,3303.6,0.9778862]
[1768654449514,0.95131134,3304.8,3303.6,0.9778862]
[1768654449711,1.27540823,3304.9,3303.6,0.9778862]
[1768654449912,0.95131042,3304.8,3303.6,0.9778862]
[1768654450123,1.27540823,3304.9,3303.6,0.9778862]
[1768654450322,0.95131047,3304.8,3303.6,0.9778862]
[1768654450622,1.27540823,3304.9,3303.6,0.9778862]
[1768654450925,0.95131047,3304.8,3303.6,0.9778862]
[1768654451130,1.27540823,3304.9,3303.6,0.9778862]
[1768654451326,0.95131049,3304.8,3303.6,0.9778862]
[1768654451626,1.27540823,3304.9,3303.6,0.9778862]
[1768654451817,0.95131142,3304.8,3303.6,0.9778862]
[1768654452018,1.27540823,3304.9,3303.6,0.9778862]
[1768654452313,0.95131138,3304.8,3303.6,0.9778862]
[1768654452514,1.27540823,3304.9,3303.6,0.9778862]
[1768654452714,0.95131043,3304.8,3303.6,0.9778862]
[1768654452926,1.27540823,3304.9,3303.6,0.9778862]
[1768654453113,0.95131053,3304.8,3303.6,0.9778862]
[1768654453313,1.27540823,3304.9,3303.6,0.9778862]
[1768654453523,0.95131156,3304.8,3303.6,0.9778862]
[1768654453732,0.29752203,3304.9,3303.6,0.9778862]
[1768654453932,0.95131147,3304.8,3303.6,0.9778862]
[1768654454229,0.29752203,3304.9,3303.6,0.9778862]
[1768654454429,0.95131278,3304.8,3303.6,0.9778862]
[1768654454629,0.29752203,3304.9,3303.6,0.9778862]
[1768654454831,0.95131278,3304.8,3303.6,0.9778862]
[1768654455029,0.29752203,3304.9,3303.6,0.9778862]
[1768654455230,0.95131274,3304.8,3303.6,0.9778862]
[1768654455528,0.29752203,3304.9,3303.6,0.9778862]
[1768654455727,0.95131272,3304.8,3303.6,0.9778862]
[1768654455920,0.29752203,3304.9,3303.6,0.9778862]
[1768654456121,0.95131272,3304.8,3303.6,0.9778862]
[1768654456323,0.29752203,3304.9,3303.6,0.9778862]
[1768654456524,0.95131271,3304.8,3303.6,0.9778862]
[1768654456722,0.29752203,3304.9,3303.8,0.9778862]
[1768654456928,0.26137779,3305.5,3304.1,0.9778862]
[1768654457121,0.26137779,3305.3,3304.1,0.9778862]
[1768654457318,1.22322743,3305.2,3304.1,0.9778862]
[1768654457528,0.95136235,3305.1,3304.1,0.9778862]
[1768654457733,0.95136235,3305.0,3304.1,0.9778862]
[1768654457934,0.26137779,3305.3,3304.1,0.9778862]
[1768654458233,1.48427838,3305.2,3304.1,0.9778862]
[1768654458435,0.9511091,3305.1,3304.1,0.9778862]
[1768654458734,0.26137779,3305.2,3304.1,0.9778862]
[1768654458920,0.9510003,3305.1,3304.1,0.9778862]
[1768654459122,0.26137779,3305.2,3304.1,0.9778862]
[1768654459323,0.95090293,3305.1,3303.9,0.9778862]
[1768654459534,0.26137779,3305.2,3303.9,0.9778862]
[1768654459733,0.95090168,3305.1,3303.9,0.9778862]
[1768654460032,1.23926399,3305.2,3303.9,0.9778862]
[1768654460226,1.21227942,3305.1,3303.9,0.9778862]
[1768654460428,0.26137779,3305.1,3303.9,0.9778862]
[1768654469128,0.95057894,3305.0,3303.9,0.9778862]
[1768654469333,0.26137779,3305.1,3303.9,0.9778862]
[1768654469535,0.95056895,3305.0,3303.9,0.9778862]
[1768654469841,0.26137779,3305.1,3303.9,0.9778862]
[1768654470140,0.95056895,3305.0,3303.9,0.9778862]
[1768654470335,0.26137779,3305.1,3303.9,0.9778862]
[1768654470536,0.95056516,3305.0,3303.9,0.9778862]
[1768654470738,0.26137779,3305.1,3303.9,0.9778862]
[1768654470944,0.95056472,3305.0,3303.9,0.9778862]
[1768654471148,0.26137779,3305.1,3303.9,0.9778862]
[1768654471349,0.95056062,3305.0,3303.9,0.9778862]
[1768654471548,0.26137779,3305.1,3303.9,0.9778862]
[1768654471748,0.95056065,3305.0,3303.9,0.9778862]
[1768654471938,0.26137779,3305.1,3303.9,0.9778862]
[1768654472138,0.95056065,3305.0,3303.9,0.9778862]
[1768654472351,0.26137779,3305.1,3303.9,0.9778862]
[1768654472650,0.95056093,3305.0,3303.9,0.9778862]
[1768654472846,0.26137779,3305.1,3303.9,0.9778862]
[1768654473041,0.95056093,3305.0,3303.9,0.9778862]
[1768654473242,0.26137779,3305.1,3303.9,0.9778862]
[1768654473443,0.95056559,3305.0,3303.9,0.9778862]
[1768654473646,0.26137779,3305.1,3303.9,0.9778862]
[1768654473849,0.95056559,3305.0,3303.9,0.9778862]
[1768654474047,0.26137779,3305.1,3303.9,0.9778862]
[1768654474342,0.95056559,3305.0,3303.9,0.9778862]
[1768654474543,0.26137779,3305.1,3303.9,0.9778862]
[1768654485454,0.26137779,3305.1,3303.5,0.4405624]
[1768654488149,0.26137779,3305.1,3303.6,0.24597479]
[1768654492756,0.26137779,3305.1,3303.7,3.778]
[1768654493153,0.26137779,3305.1,3303.5,0.1514]
[1768654493361,0.26137779,3305.1,3303.6,3.779]
[1768654496961,0.26137779,3305.1,3303.5,0.1514]
[1768654497160,0.26137779,3305.1,3303.7,3.782]
[1768654501361,1.20227698,3305.0,3303.7,3.782]
[1768654501562,0.25181245,3305.0,3303.7,3.782]
[1768654504272,0.25181245,3305.0,3303.5,0.1514]
[1768654504566,0.25181245,3305.0,3303.6,3.789]
[1768654520874,0.9776909,3305.2,3303.6,3.789]
[1768654521084,0.95245106,3305.1,3303.6,3.789]
[1768654521376,0.95245106,3305.0,3303.6,3.789]
[1768654521577,1.22950335,3305.3,3303.6,3.789]
[1768654521772,1.46693017,3305.2,3303.6,3.789]
[1768654521974,0.95251013,3305.1,3303.6,3.789]
[1768654522172,0.95251013,3305.0,3303.6,3.789]
[1768654522372,0.24260438,3305.2,3303.6,3.789]
[1768654522662,0.9525891,3305.1,3303.6,3.789]
[1768654522866,0.9525891,3305.0,3303.7,3.806]
[1768654523068,0.24260438,3305.2,3303.7,3.806]
[1768654523367,0.95259067,3305.1,3303.7,3.806]
[1768654523564,0.95259067,3305.0,3303.7,3.806]
[1768654523865,0.24260438,3305.2,3303.7,3.806]
[1768654524067,0.95270444,3305.1,3303.7,3.806]
[1768654524274,0.95270444,3305.0,3303.7,3.806]
[1768654524476,0.24260438,3305.2,3303.7,3.806]
[1768654524669,0.95272042,3305.1,3303.7,3.806]
[1768654524870,0.95272042,3305.0,3303.7,3.806]
[1768654525069,0.24260438,3305.2,3303.7,3.806]
[1768654525265,0.9527369,3305.1,3303.7,3.806]
[1768654525466,0.9527369,3305.0,3303.7,3.809]
[1768654525671,0.24260438,3305.2,3303.7,3.809]
[1768654525871,0.95273863,3305.1,3303.7,3.809]
[1768654526072,0.95273863,3305.0,3303.7,3.809]
[1768654526272,0.24260438,3305.2,3303.7,3.809]
[1768654526473,0.95276133,3305.1,3303.7,3.809]
[1768654526774,0.95276133,3305.0,3303.7,3.809]
[1768654526974,0.24260438,3305.2,3303.7,3.809]
[1768654527174,0.95276144,3305.1,3303.7,3.809]
[1768654527374,0.95276144,3305.0,3303.7,3.809]
[1768654527580,0.24260438,3305.2,3303.7,3.809]
[1768654527781,0.95279672,3305.1,3303.7,3.809]
[1768654527980,0.95279672,3305.0,3303.7,3.809]
[1768654528178,0.24260438,3305.2,3303.7,3.809]
[1768654528381,0.95281754,3305.1,3303.7,3.809]
[1768654528685,0.24260438,3305.2,3303.7,3.809]
[1768654528686,0.95281754,3305.0,3303.7,3.809]
[1768654528884,0.24260438,3305.2,3303.7,3.809]
[1768654529085,0.95281764,3305.1,3303.7,3.809]
[1768654529280,0.95281764,3305.0,3303.7,3.809]
[1768654529478,0.24260438,3305.2,3303.7,3.809]
[1768654529784,0.95287418,3305.1,3303.7,3.809]
[1768654529978,0.95287418,3305.0,3303.7,3.809]
[1768654530178,0.24260438,3305.2,3303.7,3.809]
[1768654530387,0.95287815,3305.1,3303.7,3.809]
[1768654530569,0.95287815,3305.0,3303.7,3.809]
[1768654530770,0.24260438,3305.2,3303.7,3.809]
[1768654530975,0.95287815,3305.1,3303.7,3.809]
[1768654531275,0.95287815,3305.0,3303.7,3.809]
[1768654531471,0.24260438,3305.2,3303.7,3.809]
[1768654531678,0.95287765,3305.1,3303.7,3.809]
[1768654531989,0.95287765,3305.0,3303.7,3.809]
[1768654532286,0.24260438,3305.2,3303.7,3.809]
[1768654532478,0.95287712,3305.1,3303.7,3.809]
[1768654532681,0.95287712,3305.0,3303.7,3.809]
[1768654532876,0.24260438,3305.2,3303.7,3.809]
[1768654533080,0.95287719,3305.1,3303.7,3.809]
[1768654533378,0.95287719,3305.0,3303.7,3.809]
[1768654533576,0.24260438,3305.2,3303.7,3.809]
[1768654533778,0.95287661,3305.1,3303.7,3.809]
[1768654533991,0.95287661,3305.0,3303.7,3.809]
[1768654534190,0.24260438,3305.2,3303.7,3.809]
[1768654534487,0.95285417,3305.1,3303.7,3.809]
[1768654534685,0.95285417,3305.0,3303.7,3.809]
[1768654534885,0.24260438,3305.2,3303.7,3.809]
[1768654535088,0.95285414,3305.1,3303.7,3.809]
[1768654535285,0.95285414,3305.0,3303.7,3.809]
[1768654535486,0.24260438,3305.2,3303.7,3.809]
[1768654535791,0.95285375,3305.1,3303.7,3.809]
[1768654535991,0.95285375,3305.0,3303.7,3.809]
[1768654536192,0.24260438,3305.2,3303.7,3.809]
[1768654536491,0.95285346,3305.1,3303.7,3.809]
[1768654536693,0.95285346,3305.0,3303.7,3.809]
[1768654536890,0.24260438,3305.2,3303.7,3.809]
[1768654537192,0.95285352,3305.1,3303.7,3.809]
[1768654537390,0.95285352,3305.0,3303.7,3.809]
[1768654537590,0.24260438,3305.2,3303.7,3.809]
[1768654537893,0.95285321,3305.1,3303.7,3.809]
[1768654538084,0.95285321,3305.0,3303.7,3.809]
[1768654538279,0.24260438,3305.2,3303.7,3.809]
[1768654538485,0.95285278,3305.1,3303.7,3.809]
[1768654538686,0.95285278,3305.0,3303.7,3.809]
[1768654538889,0.24260438,3305.2,3303.7,3.809]
[1768654539188,0.95285284,3305.1,3303.7,3.809]
[1768654539387,0.95285284,3305.0,3303.7,3.809]
[1768654539590,0.24260438,3305.2,3303.7,3.809]
[1768654539790,0.95285255,3305.1,3303.7,3.809]
[1768654539992,0.95285255,3305.0,3303.7,3.809]
[1768654540291,0.24260438,3305.2,3303.7,3.809]
[1768654540491,0.95285221,3305.1,3303.7,3.809]
[1768654540690,0.95285221,3305.0,3303.7,3.809]
[1768654540886,0.24260438,3305.2,3303.7,3.809]
[1768654541092,0.9528523,3305.1,3303.7,3.809]
[1768654541292,0.9528523,3305.0,3303.7,3.809]
[1768654541592,0.24260438,3305.2,3303.7,3.809]
[1768654541892,0.95285248,3305.1,3303.7,3.809]
[1768654542095,0.95285248,3305.0,3303.7,3.809]
[1768654542291,0.24260438,3305.2,3303.7,3.809]
[1768654542490,0.9528527,3305.1,3303.7,3.809]
[1768654542797,0.9528527,3305.0,3303.7,3.809]
[1768654542986,0.24260438,3305.2,3303.7,3.809]
[1768654543187,0.95285273,3305.1,3303.7,3.809]
[1768654543389,0.95285273,3305.0,3303.7,3.809]
[1768654543685,0.24260438,3305.2,3303.7,3.809]
[1768654543885,1.2247385,3305.1,3303.7,3.809]
[1768654544094,0.95285317,3305.0,3303.7,3.809]
[1768654544292,0.24260438,3305.2,3303.7,3.809]
[1768654544498,1.22471616,3305.1,3303.7,3.809]
[1768654544689,0.95285358,3305.0,3303.7,3.809]
[1768654544990,0.24260438,3305.2,3303.7,3.809]
[1768654545186,1.22469291,3305.1,3303.7,3.809]
[1768654545387,0.95283549,3305.0,3303.7,3.809]
[1768654545587,0.24260438,3305.2,3303.7,3.809]
[1768654545783,1.22466355,3305.1,3303.7,3.809]
[1768654545995,0.95282062,3305.0,3303.7,3.809]
[1768654546197,0.24260438,3305.2,3303.7,3.809]
[1768654546397,0.95281755,3305.1,3303.7,3.809]
[1768654546697,0.95281755,3305.0,3303.7,3.809]
[1768654546900,0.24260438,3305.2,3303.7,3.809]
[1768654547196,0.95281771,3305.1,3303.7,3.809]
[1768654547392,0.97781411,3304.9,3303.7,3.809]
[1768654570325,0.97781411,3305.0,3303.7,3.809]
[1768654577427,0.97781411,3305.0,3303.6,0.97781411]
[1768654577632,0.97781411,3305.0,3303.7,3.858]
[1768654579434,0.24260438,3305.2,3303.7,3.858]
[1768654579627,0.97781411,3305.0,3303.7,3.858]
[1768654594739,0.97781411,3305.0,3303.8,0.97781411]
[1768654597249,0.24260438,3305.2,3303.8,0.97781411]
[1768654597451,1.93111811,3305.1,3303.8,0.97781411]
[1768654597645,0.953304,3305.0,3303.8,0.97781411]
[1768654597846,0.97781411,3305.1,3303.8,0.97781411]
[1768654598049,0.95330403,3305.0,3303.8,0.97781411]
[1768654598241,0.97781411,3305.1,3303.8,0.97781411]
[1768654598435,0.95331787,3305.0,3303.8,0.97781411]
[1768654598641,0.97781411,3305.1,3303.8,0.97781411]
[1768654598942,0.95331793,3305.0,3303.8,0.97781411]
[1768654599144,0.97781411,3305.1,3303.8,0.97781411]
[1768654599342,0.95333487,3305.0,3303.8,0.97781411]
[1768654599542,0.97781411,3305.1,3303.8,0.97781411]
[1768654599849,0.95333493,3305.0,3303.8,0.97781411]
[1768654600151,0.97781411,3305.1,3303.8,0.97781411]
[1768654600350,0.95335654,3305.0,3303.8,0.97781411]
[1768654600546,0.97781411,3305.1,3303.8,0.97781411]
[1768654600752,0.95335663,3305.0,3303.8,0.97781411]
[1768654600939,0.97781411,3305.1,3303.8,0.97781411]
[1768654601239,0.95335657,3305.0,3303.8,0.97781411]
[1768654601438,0.95335657,3304.9,3303.8,0.97781411]
[1768654601643,0.97781411,3305.1,3303.8,0.97781411]
[1768654601851,0.95338725,3305.0,3303.8,0.97781411]
[1768654602052,0.95338725,3304.9,3303.8,0.97781411]
[1768654602253,0.97781411,3305.1,3303.7,3.858]
[1768654602554,0.95344811,3305.0,3303.7,3.858]
[1768654602748,0.95344811,3304.9,3303.7,3.858]
[1768654602949,0.97781411,3305.1,3303.7,3.858]
[1768654603150,0.95344811,3305.0,3303.7,3.858]
[1768654603448,0.95344811,3304.9,3303.7,3.858]
[1768654603652,0.97781411,3305.1,3303.7,3.858]
[1768654603846,0.95344869,3305.0,3303.7,3.858]
[1768654604048,0.95344869,3304.9,3303.7,3.858]
[1768654604248,0.97781411,3305.1,3303.7,3.858]
[1768654604447,0.95344962,3305.0,3303.7,3.858]
[1768654604740,0.95344962,3304.9,3303.7,3.858]
[1768654604947,0.97781411,3305.1,3303.7,3.858]
[1768654605151,0.95344962,3305.0,3303.7,3.858]
[1768654605344,0.95344962,3304.9,3303.7,3.858]
[1768654605543,0.97781411,3305.1,3303.7,3.858]
[1768654605745,0.95345061,3305.0,3303.7,3.858]
[1768654605949,0.95345061,3304.9,3303.7,3.858]
[1768654606247,0.97781411,3305.1,3303.7,3.858]
[1768654606447,0.95345219,3305.0,3303.7,3.858]
[1768654606653,0.95345219,3304.9,3303.7,3.858]
[1768654606845,0.97781411,3305.1,3303.7,3.858]
[1768654607043,0.95345238,3305.0,3303.7,3.858]
[1768654607251,0.95345238,3304.9,3303.7,3.858]
[1768654607453,0.24260438,3305.2,3303.7,3.858]
[1768654607655,1.22538289,3305.1,3303.7,3.858]
[1768654607855,0.95345424,3305.0,3303.7,3.858]
[1768654608057,0.95345424,3304.9,3303.7,3.858]
[1768654608248,0.24260438,3305.2,3303.7,3.858]
[1768654608548,1.22538369,3305.1,3303.7,3.858]
[1768654608747,0.95345482,3305.0,3303.7,3.858]
[1768654608956,0.95345482,3304.9,3303.7,3.858]
[1768654609258,0.24260438,3305.2,3303.7,3.858]
[1768654609557,1.22538548,3305.1,3303.7,3.858]
[1768654609758,0.95345629,3305.0,3303.7,3.858]
[1768654609947,0.24260438,3305.2,3303.7,3.858]
[1768654610255,1.22538536,3305.1,3303.7,3.858]
[1768654610453,0.9534562,3305.0,3303.7,3.858]
[1768654610653,0.24260438,3305.2,3303.7,3.858]
[1768654610854,1.22538593,3305.1,3303.7,3.858]
[1768654611057,0.9534567,3305.0,3303.7,3.858]
[1768654611359,0.24260438,3305.2,3303.7,3.858]
[1768654611555,1.22538526,3305.1,3303.7,3.858]
[1768654611853,0.95345608,3305.0,3303.7,3.858]
[1768654612054,0.24260438,3305.2,3303.7,3.858]
[1768654612251,1.22538488,3305.1,3303.7,3.858]
[1768654612547,0.95345573,3305.0,3303.7,3.858]
[1768654612858,0.24260438,3305.2,3303.7,3.858]
[1768654613059,0.95345579,3305.1,3303.7,3.858]
[1768654613256,0.95345579,3305.0,3303.7,3.858]
[1768654613554,0.24260438,3305.2,3303.7,3.858]
[1768654613748,0.95345579,3305.1,3303.7,3.858]
[1768654613950,0.95345579,3305.0,3303.7,3.858]
[1768654614250,0.24260438,3305.2,3303.7,3.858]
[1768654614451,0.95345548,3305.1,3303.7,3.858]
[1768654614652,0.95345548,3305.0,3303.7,3.858]
[1768654614859,0.24260438,3305.2,3303.7,3.858]
[1768654615061,0.95345554,3305.1,3303.7,3.858]
[1768654615259,0.95345554,3305.0,3303.7,3.858]
[1768654615450,0.24260438,3305.2,3303.7,3.858]
[1768654615650,0.95345547,3305.1,3303.7,3.858]
[1768654615852,0.95345547,3305.0,3303.7,3.858]
[1768654616055,0.24260438,3305.2,3303.7,3.858]
[1768654616349,0.95345532,3305.1,3303.7,3.858]
[1768654616549,0.95345532,3305.0,3303.7,3.858]
[1768654616761,0.24260438,3305.2,3303.7,3.858]
[1768654616964,0.95346548,3305.1,3303.7,3.858]
[1768654617263,0.95346548,3305.0,3303.7,3.858]
[1768654617461,0.24260438,3305.2,3303.7,3.858]
[1768654617760,0.95346188,3305.1,3303.7,3.858]
[1768654617949,0.24260438,3305.2,3303.7,3.858]
[1768654617950,0.95346188,3305.0,3303.7,3.858]
[1768654618151,0.24260438,3305.2,3303.7,3.858]
[1768654618360,0.95345955,3305.1,3303.7,3.858]
[1768654618560,0.95345955,3305.0,3303.7,3.858]
[1768654618762,0.24260438,3305.2,3303.7,3.858]
[1768654618958,0.95345847,3305.1,3303.7,3.858]
[1768654619162,0.95345847,3305.0,3303.7,3.858]
[1768654619460,0.24260438,3305.2,3303.7,3.858]
[1768654619646,0.95345786,3305.1,3303.7,3.858]
[1768654619854,0.95345786,3305.0,3303.7,3.858]
[1768654620063,0.24260438,3305.2,3303.7,3.858]
[1768654620262,0.95345702,3305.1,3303.7,3.858]
[1768654620565,0.95345702,3305.0,3303.7,3.858]
[1768654620756,0.24260438,3305.2,3303.7,3.858]
[1768654620955,0.95345311,3305.1,3303.7,3.858]
[1768654621158,0.95345311,3305.0,3303.7,3.858]
[1768654621457,0.24260438,3305.2,3303.7,3.858]
[1768654621657,0.95345237,3305.1,3303.7,3.858]
[1768654621866,0.24260438,3305.2,3303.7,3.858]
[1768654622164,0.95345183,3305.1,3303.7,3.858]
[1768654622464,0.24260438,3305.2,3303.7,3.858]
[1768654622663,0.95343302,3305.1,3303.7,3.858]
[1768654622864,0.95343302,3305.0,3303.7,3.858]
[1768654623061,0.24260438,3305.2,3303.7,3.858]
[1768654623362,0.95343238,3305.1,3303.7,3.858]
[1768654623553,0.95343238,3305.0,3303.7,3.858]
[1768654623861,0.24260438,3305.2,3303.7,3.858]
[1768654624159,0.95342216,3305.1,3303.7,3.858]
[1768654624464,0.95342216,3305.0,3303.7,3.858]
[1768654624647,0.24260438,3305.2,3303.7,3.858]
[1768654624847,0.95365184,3305.1,3303.7,3.858]
[1768654625151,0.24260438,3305.2,3303.7,3.858]
[1768654625152,0.24260438,3305.2,3303.7,4.0934562]
[1768654625350,0.95363808,3305.1,3303.7,4.0934562]
[1768654625556,0.24260438,3305.2,3303.7,4.0934562]
[1768654625755,0.95364004,3305.1,3303.7,4.0934562]
[1768654625963,0.24260438,3305.2,3303.7,4.0934562]
[1768654626156,0.9536401,3305.1,3303.7,4.0934562]
[1768654626357,0.24260438,3305.2,3303.7,4.0934562]
[1768654626558,0.9536206,3305.1,3303.7,4.0934562]
[1768654626864,0.24260438,3305.2,3303.7,4.0934562]
[1768654627065,0.95362066,3305.1,3303.7,4.0934562]
[1768654627265,0.24260438,3305.2,3303.7,4.0934562]
[1768654627467,0.95360629,3305.1,3303.7,4.0934562]
[1768654627767,0.24260438,3305.2,3303.7,4.0934562]
[1768654628069,0.95360635,3305.1,3303.7,4.0934562]
[1768654628265,0.24260438,3305.2,3303.7,4.0934562]
[1768654628464,0.95359554,3305.1,3303.7,4.0934562]
[1768654628657,0.24260438,3305.2,3303.7,4.0934562]
[1768654628858,0.95359568,3305.1,3303.7,4.0934562]
[1768654629063,0.24260438,3305.2,3303.7,4.0934562]
[1768654629356,0.95359342,3305.1,3303.7,4.0934562]
[1768654629555,0.24260438,3305.2,3303.7,4.0934562]
[1768654629765,0.95358667,3305.1,3303.7,4.0934562]
[1768654629965,0.24260438,3305.2,3303.7,4.0934562]
[1768654630268,0.9535969,3305.1,3303.7,4.0934562]
[1768654630565,0.24260438,3305.2,3303.7,4.0934562]
[1768654630764,0.95358969,3305.1,3303.7,4.0934562]
[1768654630965,0.24260438,3305.2,3303.7,4.0934562]
[1768654631163,0.95358962,3305.1,3303.7,4.0934562]
[1768654631364,0.24260438,3305.2,3303.7,4.0934562]
[1768654631567,0.9535849,3305.1,3303.7,4.0934562]
[1768654631864,0.24260438,3305.2,3303.7,4.0934562]
[1768654632065,0.953585,3305.1,3303.7,4.0934562]
[1768654632266,0.24260438,3305.2,3303.7,4.0934562]
[1768654632465,0.95358117,3305.1,3303.7,4.0934562]
[1768654632665,0.24260438,3305.2,3303.7,4.0934562]
[1768654632866,0.95358118,3305.1,3303.7,4.0934562]
[1768654633071,0.24260438,3305.2,3303.7,4.0934562]
[1768654633366,0.95358127,3305.1,3303.7,4.0934562]
[1768654633568,0.24260438,3305.2,3303.7,4.0934562]
[1768654633764,0.95357813,3305.1,3303.7,4.0934562]
[1768654633966,0.24260438,3305.2,3303.7,4.0934562]
[1768654634265,0.95357985,3305.1,3303.7,4.0934562]
[1768654634460,0.24260438,3305.2,3303.7,4.0934562]
[1768654634655,0.95357613,3305.1,3303.7,4.0934562]
[1768654634855,0.24260438,3305.2,3303.7,4.0934562]
[1768654635059,0.95357463,3305.1,3303.7,4.0934562]
[1768654635355,0.24260438,3305.2,3303.7,4.0934562]
[1768654635556,0.95357457,3305.1,3303.7,4.0934562]
[1768654635761,0.24260438,3305.2,3303.7,4.0934562]
[1768654635961,0.95357619,3305.1,3303.7,4.0934562]
[1768654636161,0.24260438,3305.2,3303.7,4.0934562]
[1768654636369,0.95357546,3305.1,3303.7,4.0934562]
[1768654636572,0.24260438,3305.2,3303.7,4.0934562]
[1768654636768,0.95357542,3305.1,3303.7,4.0934562]
[1768654636965,0.24260438,3305.2,3303.7,4.0934562]
[1768654637170,0.95357548,3305.1,3303.7,4.0934562]
[1768654637373,0.24260438,3305.2,3303.7,4.0934562]
[1768654637672,0.95357542,3305.1,3303.7,4.0934562]
[1768654637970,0.24260438,3305.2,3303.7,4.0934562]
[1768654638162,0.95357514,3305.1,3303.7,4.0934562]
[1768654638364,0.24260438,3305.2,3303.7,4.0934562]
[1768654638662,0.95357585,3305.1,3303.7,4.0934562]
[1768654638864,0.24260438,3305.2,3303.7,4.0934562]
[1768654639061,0.95357585,3305.1,3303.7,4.0934562]
[1768654639258,0.24260438,3305.2,3303.7,4.0934562]
[1768654639459,0.9535765,3305.1,3303.7,4.0934562]
[1768654639662,0.24260438,3305.2,3303.7,4.0934562]
[1768654639869,0.95357724,3305.1,3303.7,4.0934562]
[1768654640069,0.24260438,3305.2,3303.7,4.0934562]
[1768654640369,0.95357849,3305.1,3303.7,4.0934562]
[1768654640570,0.24260438,3305.2,3303.7,4.0934562]
[1768654640771,0.95357933,3305.1,3303.7,4.0934562]
[1768654640974,0.24260438,3305.2,3303.7,4.0934562]
[1768654641174,0.95357936,3305.1,3303.7,4.0934562]
[1768654641375,0.24260438,3305.2,3303.7,4.0934562]